fUST/lending_fUST_20260420
["ID","MTS","AMOUNT","RATE_DAILY","PERIOD"]
[420864221,1776665446812,-2038.40569435,0.000129,2]
[420864222,1776665446822,-2038.40569435,0.000129,2]
[420864223,1776665446832,-212.44647,0.00013348,2]
[420864224,1776665446842,-1000.0,0.00013699,2]
[420864225,1776665446853,-212.44647,0.00013847,2]
[420864226,1776665446863,-525.0,0.00014155,2]
[420864227,1776665446872,-212.44647,0.00014346,2]
[420864228,1776665446882,-2038.40569435,0.00014385,2]
[420864229,1776665446892,-152.0,0.00015,7]
[420864230,1776665446901,-2038.40569435,0.0001638,2]
[420864231,1776665446911,-169.13650246,0.00016775,2]
[420864232,1776665446920,-500.0,0.00016775,2]
[420864233,1776665446931,-500.0,0.00016775,2]
[420864234,1776665446940,-500.0,0.00016775,2]
[420864235,1776665446950,-500.0,0.00016775,2]
[420864236,1776665446960,-53.86059001,0.00016775,2]
[420864237,1776665446998,-446.13940999,0.00016775,2]
[420864238,1776665447008,-377.47347711,0.00016775,2]
[420864239,1776665447017,-414.03009052,0.00016775,2]
[420864240,1776665447027,-272.79009297,0.00016775,2]
[420864241,1776665447037,-500.0,0.00016775,2]
[420864242,1776665447046,-500.0,0.00016775,2]
[420864243,1776665447056,-500.0,0.00016775,2]
[420864244,1776665447065,-500.0,0.00016775,2]
[420864245,1776665447075,-500.0,0.00016775,2]
[420864246,1776665447086,-500.0,0.00016775,2]
[420864247,1776665447095,-500.0,0.00016775,2]
[420864248,1776665447105,-500.0,0.00016775,2]
[420864249,1776665447114,-500.0,0.00016775,2]
[420864250,1776665447124,-500.0,0.00016775,2]
[420864251,1776665447134,-500.0,0.00016775,2]
[420864252,1776665447144,-500.0,0.00016775,2]
[420864253,1776665447153,-322.09189646,0.00016775,2]
[420864262,1776666397127,-1358.13827372,0.00010654,2]
[420864289,1776666632659,-5000.0,0.00010442,2]
[420864291,1776666632670,-503.0,0.00010547,2]
[420864293,1776666632680,-150.0,0.00010735,2]
[420864295,1776666632690,-164.3109069,0.00010981,2]
[420864297,1776666632700,-4735.4268863,0.00010981,2]
[420864299,1776666632709,-4735.4268863,0.00012445,2]
[420864301,1776666632718,-176.41354618,0.00012735,2]
[420864302,1776666632728,-1000.0,0.00013699,2]
[420864304,1776666632737,-500.0,0.00013908,2]
[420864306,1776666632746,-4735.4268863,0.00013909,2]
[420864308,1776666632755,-152.0,0.00014654,7]
[420864309,1776666632765,-152.0,0.00014672,7]
[420864311,1776666632774,-4735.4268863,0.00015373,2]
[420864313,1776666632783,-238.4228833,0.00015984,2]
[420864314,1776666632793,-764.40213539,0.00016476,2]
[420864315,1776666632802,-4820.28249575,0.00016576,2]
[420864316,1776666632824,-964.89145865,0.00016576,2]
[420864317,1776666632836,-12702.56571321,0.00016576,2]
[420864338,1776666639020,-7487.86177035,0.00016576,2]
[420864354,1776666641276,-4052.64258996,0.00016576,2]
[420864376,1776666647053,-300.0,0.00016576,2]
[420864377,1776666647066,-540.92371165,0.00016576,2]
[420864379,1776666647296,-36127.4505039,0.00016576,2]
[420864380,1776666647372,-150.90425263,0.00016576,2]
[420864381,1776666647383,-5551.52627168,0.00016576,2]
[420864382,1776666647394,-4895.9349,0.00016576,2]
[420864383,1776666647416,-7555.21288691,0.00016576,2]
[420864417,1776667798742,3536.278,0.00012298,2]
[420864448,1776667832046,-4084.03722137,0.00012174,2]
[420864449,1776667832056,-524.0,0.00012297,2]
[420864520,1776667838225,-676.0,0.00012297,2]
[420864521,1776667838236,-504.0,0.00012297,2]
[420864522,1776667838246,-1463.722,0.00012298,2]
[420864523,1776667838256,-300.0,0.00012546,2]
[420864524,1776667838266,-300.0,0.00012546,2]
[420864525,1776667838276,-150.0,0.00012548,2]
[420864526,1776667838286,-367.47892341,0.00013233,14]
[420864527,1776667838296,-1680.0,0.00013527,2]
[420864528,1776667838305,-1000.0,0.00013699,2]
[420864529,1776667838315,-181.25418084,0.00014548,2]
[420864530,1776667838326,-151.0,0.00015192,2]
[420864531,1776667838335,-325.2847064,0.00016013,2]
[420864532,1776667838346,-972.54,0.000165,2]
[420864533,1776667838356,-668.85186851,0.000166,2]
[420864534,1776667838365,-500.0,0.00016699,2]
[420864535,1776667838374,-319.71927523,0.00016699,2]
[420864536,1776667838383,-500.0,0.00016699,2]
[420864537,1776667838392,-500.0,0.00016699,2]
[420864538,1776667838402,-500.0,0.00016699,2]
[420864539,1776667838411,-500.0,0.00016699,2]
[420864540,1776667838421,-377.19470706,0.00016699,2]
[420864541,1776667838430,-500.0,0.00016699,2]
[420864542,1776667838439,-500.0,0.00016699,2]
[420864543,1776667838450,-500.0,0.00016699,2]
[420864544,1776667838459,-500.0,0.00016699,2]
[420864545,1776667838469,-500.0,0.00016699,2]
[420864546,1776667838478,-500.0,0.00016699,2]
[420864547,1776667838487,-22885.04946529,0.000167,2]
[420864548,1776667838510,-21565.33236841,0.000167,2]
[420864559,1776667840349,-152.0,0.00016016,7]
[420864561,1776667840358,-1532.90452827,0.000167,2]
[420864616,1776667846099,-152.0,0.00016016,7]
[420864617,1776667846108,-152.0,0.00016021,7]
[420864618,1776667846117,-152.0,0.00016021,7]
[420864619,1776667846126,-152.0,0.00016021,7]
[420864620,1776667846136,-152.0,0.00016026,7]
[420864621,1776667846145,-152.0,0.00016026,7]
[420864622,1776667846154,-152.0,0.00016026,7]
[420864623,1776667846164,-152.0,0.00016026,7]
[420864624,1776667846173,-3752.4656512,0.00016533,2]
[420864625,1776667846185,-1247.5343488,0.00016533,2]
[420864626,1776667846194,-500.0,0.00016699,2]
[420864627,1776667846203,-64842.90245708,0.000167,2]
[420864629,1776667846212,-1206.33215913,0.00016799,2]
[420864630,1776667846222,-153.428406,0.00016813,2]
[420864631,1776667846231,-500.0,0.00016813,2]
[420864632,1776667846240,-500.0,0.00016813,2]
[420864633,1776667846249,-500.0,0.00016813,2]
[420864634,1776667846258,-500.0,0.00016813,2]
[420864635,1776667846267,-500.0,0.00016813,2]
[420864636,1776667846277,-500.0,0.00016813,2]
[420864637,1776667846286,-500.0,0.00016813,2]
[420864638,1776667846295,-500.0,0.00016813,2]
[420864639,1776667846304,-500.0,0.00016813,2]
[420864641,1776667846314,-500.0,0.00016813,2]
[420864642,1776667846323,-2150.738,0.00016813,2]
[420864643,1776667846332,-500.0,0.00016873,2]
[420864644,1776667846341,-500.0,0.00016873,2]
[420864645,1776667846350,-497.21335091,0.00016873,2]
[420864646,1776667846360,-500.0,0.00016873,2]
[420864647,1776667846370,-500.0,0.00016873,2]
[420864649,1776667846379,-500.0,0.00016873,2]
[420864650,1776667846388,-503.14874925,0.00016873,2]
[420864651,1776667846397,-500.0,0.00016873,2]
[420864652,1776667846406,-500.0,0.00016873,2]
[420864653,1776667846416,-500.0,0.00016873,2]
[420864654,1776667846425,-500.0,0.00016873,2]
[420864655,1776667846435,-445.392,0.00016873,2]
[420864656,1776667846444,-151.0,0.00016873,2]
[420864657,1776667846453,-500.0,0.00016896,2]
[420864658,1776667846462,-289.82106337,0.00016896,2]
[420864659,1776667846471,-500.0,0.00016896,2]
[420864660,1776667846481,-211.20369882,0.00016896,2]
[420864661,1776667846492,-288.79630118,0.00016896,2]
[420864662,1776667846501,-500.0,0.00016896,2]
[420864663,1776667846510,-494.36958808,0.00016896,2]
[420864664,1776667846533,-5.63041192,0.00016896,2]
[420864665,1776667846542,-500.0,0.00016896,2]
[420864666,1776667846551,-500.0,0.00016896,2]
[420864667,1776667846560,-500.0,0.00016896,2]
[420864668,1776667846569,-500.0,0.00016896,2]
[420864669,1776667846579,-463.69970611,0.00016896,2]
[420864670,1776667846588,-500.0,0.00016896,2]
[420864671,1776667846598,-151.221314,0.00016898,2]
[420864672,1776667846607,-155.0,0.00016899,2]
[420864673,1776667846616,-1190.0,0.000169,2]
[420864674,1776667846625,-344.37,0.00016989,2]
[420864675,1776667846635,-3353.54885984,0.00017,2]
[420864676,1776667846646,-1826.03086402,0.00017,2]
[420864677,1776667846657,-857.52287274,0.00017,2]
[420864678,1776667846668,-5064.92389278,0.00017,2]
[420864679,1776667846679,-3536.27582371,0.00017,2]
[420864680,1776667846694,-427.77401337,0.00017,2]
[420864714,1776669032137,-5000.0,9.7e-05,2]
[420864715,1776669032147,-288.0,9.798e-05,2]
[420864717,1776669032156,-300.0,9.798e-05,2]
[420864719,1776669032166,-507.0,9.798e-05,2]
[420864720,1776669032175,-1200.0,9.798e-05,2]
[420864721,1776669032184,-150.0,9.849e-05,2]
[420864722,1776669032194,-24.99999999,0.0001,5]
[420864723,1776669032214,-2188.47267911,0.0001,5]
[420864724,1776669032227,-2167.19413998,0.0001,5]
[420864725,1776669032250,-500.82288191,0.0001,5]
[420864727,1776669038341,-7486.99707772,0.0001,5]
[420864728,1776669038351,-300.0,0.00010199,2]
[420864729,1776669038361,-300.0,0.00010199,2]
[420864730,1776669038372,-300.0,0.00010199,2]
[420864731,1776669038382,-300.0,0.00010199,2]
[420864732,1776669038392,-300.0,0.00010199,2]
[420864733,1776669038401,-300.0,0.00010199,2]
[420864734,1776669038411,-300.0,0.00010199,2]
[420864735,1776669038420,-300.0,0.00010199,2]
[420864736,1776669038430,-300.0,0.00010199,2]
[420864737,1776669038439,-300.0,0.00010199,2]
[420864738,1776669038448,-300.0,0.00010199,2]
[420864739,1776669038457,-300.0,0.00010199,2]
[420864740,1776669038467,-300.0,0.00010199,2]
[420864741,1776669038476,-300.0,0.00010199,2]
[420864742,1776669038486,-300.0,0.00010199,2]
[420864743,1776669038495,-600.0,0.00010402,2]
[420864744,1776669038505,-420.0,0.00010778,2]
[420864745,1776669038514,-1680.0,0.00010778,2]
[420864746,1776669038523,-720.0,0.00011442,2]
[420864747,1776669038533,-177.0,0.00011849,2]
[420864748,1776669038542,-587.0,0.00011856,2]
[420864749,1776669038552,-864.0,0.00012586,2]
[420864750,1776669038561,-169.864,0.00013699,2]
[420864751,1776669038571,-597.04883452,0.00013699,2]
[420864835,1776669040752,-402.95116548,0.00013699,2]
[420864836,1776669040761,-249.47,0.000137,2]
[420864837,1776669040770,-328.66026241,0.00013845,2]
[420864848,1776669043275,-4056.7015083,0.00013707,2]
[420864866,1776669046365,-943.2984917,0.00013707,2]
[420864867,1776669046375,-671.33973759,0.00013845,2]
[420864868,1776669046384,-204.0,0.00013849,2]
[420864869,1776669046393,-1000.0,0.0001523,2]
[420864870,1776669046403,-244.0,0.0001523,2]
[420864871,1776669046412,-5005.326831,0.000154,2]
[420864872,1776669046421,-175.947975,0.00015413,2]
[420864873,1776669046430,-185.85189697,0.00015849,2]
[420864874,1776669046439,-175.947975,0.00016224,2]
[420864875,1776669046448,-792.0501017,0.00016423,2]
[420864876,1776669046457,-501.79301644,0.00016573,2]
[420864877,1776669046467,-267.48923466,0.00016573,2]
[420864878,1776669046476,-1190.0,0.000166,2]
[420864879,1776669046485,-202.87474436,0.00016651,2]
[420864880,1776669046495,-500.0,0.00016651,2]
[420864881,1776669046504,-500.0,0.00016651,2]
[420864882,1776669046513,-500.0,0.00016651,2]
[420864883,1776669046522,-500.0,0.00016651,2]
[420864884,1776669046532,-500.0,0.00016651,2]
[420864885,1776669046541,-500.0,0.00016651,2]
[420864886,1776669046551,-500.0,0.00016651,2]
[420864887,1776669046561,-251.20415038,0.00016651,2]
[420864888,1776669046570,-500.0,0.00016651,2]
[420864889,1776669046580,-500.0,0.00016651,2]
[420864890,1776669046589,-500.0,0.00016651,2]
[420864891,1776669046598,-254.95580349,0.00016651,2]
[420864892,1776669046608,-500.0,0.00016651,2]
[420864893,1776669046617,-500.0,0.00016651,2]
[420864894,1776669046627,-500.0,0.00016651,2]
[420864895,1776669046636,-500.0,0.00016651,2]
[420864896,1776669046645,-500.0,0.00016651,2]
[420864897,1776669046654,-558.50026437,0.00016651,2]
[420864898,1776669046664,-500.0,0.00016651,2]
[420864899,1776669046674,-554.82982663,0.00016651,2]
[420864900,1776669046684,-500.0,0.00016651,2]
[420864901,1776669046693,-154.82367225,0.00016651,2]
[420864902,1776669046703,-500.0,0.00016651,2]
[420864903,1776669046712,-23723.48150701,0.00016652,2]
[420864970,1776669846816,-300.0,8.82e-05,2]
[420864971,1776669846845,-300.0,8.82e-05,2]
[420864972,1776669846895,-544.0,8.82e-05,2]
[420864973,1776669846925,-5000.0,8.821e-05,2]
[420864974,1776669846964,-150.0,8.866e-05,2]
[420864975,1776669847004,-5000.0,8.91e-05,2]
[420864976,1776669863688,-3176.74492544,9.509e-05,2]
[420864977,1776669863713,-5000.0,9.605e-05,2]
[420864978,1776669863737,-420.0,9.702e-05,2]
[420864985,1776670044905,10000.0,9e-05,30]
[420864987,1776670069906,156.0,4.008e-05,2]
[420865008,1776670166229,151.2,9.001e-05,30]
[420865010,1776670169129,-1496.60299159,0.0001025,2]
[420865066,1776670232353,-162.60014945,0.0001025,2]
[420865068,1776670232362,-564.0,0.0001025,2]
[420865070,1776670232371,-831.58560553,0.00010354,2]
[420865073,1776670232382,-1068.4430384,0.00010354,2]
[420865075,1776670232393,-3099.97135607,0.00010354,2]
[420865077,1776670232402,-150.0,0.00010512,2]
[420865079,1776670232411,-286.0,0.00010562,2]
[420865081,1776670232419,-1200.0,0.00010562,2]
[420865083,1776670232428,-1200.0,0.00010563,2]
[420865084,1776670232438,-300.0,0.00010563,2]
[420865086,1776670232447,-300.0,0.00010563,2]
[420865088,1776670232456,-288.0,0.00011613,2]
[420865090,1776670232466,-420.0,0.00011613,2]
[420865092,1776670232475,-1680.0,0.00011618,2]
[420865094,1776670232484,-177.0,0.00012512,2]
[420865096,1776670232494,-587.0,0.00012767,2]
[420865098,1776670232504,-1278.0,0.0001278,2]
[420865100,1776670232514,-1000.0,0.00013699,2]
[420865102,1776670232523,-823.0,0.00014035,2]
[420865104,1776670232532,-204.0,0.00014512,2]
[420865106,1776670232542,-1152.0,0.0001543,2]
[420865108,1776670232551,-7440.2746389,0.00015687,2]
[420865110,1776670232561,-164.3109069,0.00015687,2]
[420865112,1776670232570,-6881.18007764,0.00015687,2]
[420865138,1776670238784,-559.09456116,0.00015687,2]
[420865139,1776670238795,-10000.0,0.000159,2]
[420865140,1776670238806,-722.47556664,0.00015913,2]
[420865141,1776670238815,-10000.0,0.00016,2]
[420865142,1776670238825,-151.3566208,0.00016013,2]
[420865143,1776670238834,-324.7604108,0.00016013,2]
[420865144,1776670238844,-10000.0,0.000161,2]
[420865145,1776670238853,-1085.69894319,0.00016103,2]
[420865146,1776670238862,-502.74116477,0.00016173,2]
[420865147,1776670238872,-383.96061847,0.00016173,2]
[420865148,1776670238881,-303.43807449,0.00016173,2]
[420865149,1776670238894,-196.56192551,0.00016173,2]
[420865150,1776670238905,-502.37114126,0.00016173,2]
[420865151,1776670238915,-500.0,0.00016173,2]
[420865152,1776670238925,-61.54136914,0.000162,2]
[420865153,1776670238937,-47666.49685081,0.000162,2]
[420865154,1776670238950,-19142.75077144,0.000162,2]
[420865162,1776670240777,-1951.88971912,0.000162,2]
[420865163,1776670240789,-495.840245,0.000162,2]
[420865196,1776670243532,-883.33,0.000162,2]
[420865485,1776670246600,-5000.0,0.00016038,2]
[420865487,1776670246610,-4820.3092667,0.000162,2]
[420865489,1776670246621,-9225.33450463,0.000162,2]
[420865719,1776671432389,-635.16775901,0.00012892,2]
[420865722,1776671432443,-285.94924944,0.00012892,2]
[420865724,1776671432454,-4007.10796307,0.00012892,2]
[420865739,1776671439183,-71.77502848,0.00012892,2]
[420865740,1776671439193,-300.0,0.00013022,2]
[420865741,1776671439202,-605.0,0.00013022,2]
[420865742,1776671439212,-150.0,0.00013156,2]
[420865743,1776671439221,-1000.0,0.00013699,2]
[420865744,1776671439230,-420.0,0.0001428,2]
[420865745,1776671439240,-38.28507483,0.00014631,2]
[420865746,1776671439251,-261.71492517,0.00014631,2]
[420865747,1776671439261,-2282.57286553,0.00014642,2]
[420865748,1776671439284,-924.97111787,0.00014642,2]
[420865749,1776671439293,-177.0,0.00015156,2]
[420865750,1776671439303,-215.846875,0.00015211,2]
[420865751,1776671439312,-42.00260659,0.00015211,120]
[420865772,1776671443703,-30.5429182,0.00015211,120]
[420865773,1776671443714,-143.30135021,0.00015211,120]
[420865774,1776671443723,-1778.91061117,0.00015364,2]
[420865775,1776671443734,-251.66852263,0.00015364,2]
[420865776,1776671443743,-587.0,0.00015661,2]
[420865777,1776671443752,-243.434504,0.00015886,2]
[420865778,1776671443760,-25.89597927,0.0001589,2]
[420865903,1776671447652,-5000.0,0.0001521,2]
[420865904,1776671447662,-3128.23895835,0.0001589,2]
[420865988,1776672120275,-300.0,7.599e-05,2]
[420865989,1776672120299,-527.0,7.599e-05,2]
[420865990,1776672120322,-9173.0,7.6e-05,2]
[420865991,1776672122946,-300.0,7.599e-05,2]
[420865992,1776672122968,-9700.0,7.6e-05,2]
[420865993,1776672127318,-4907.74720767,7.6e-05,2]
[420865994,1776672127343,-527.0,7.6e-05,2]
[420865995,1776672127366,-363.0,8.359e-05,2]
[420865996,1776672127387,-1970.79024422,8.5e-05,7]
[420866124,1776672632633,-5000.0,0.00013024,2]
[420866125,1776672632643,-607.0,0.00013156,2]
[420866127,1776672632653,-150.0,0.00013157,2]
[420866128,1776672632663,-300.0,0.00013499,2]
[420866129,1776672632673,-3810.478099,0.000135,2]
[420866130,1776672632683,-1000.0,0.00013699,2]
[420866131,1776672632692,-177.0,0.00015157,2]
[420866132,1776672632702,-325.2970195,0.000153,2]
[420866133,1776672632711,-1000.0,0.00015675,5]
[420866134,1776672632721,-6302.7248815,0.000157,2]
[420866203,1776672641086,-7166.87758183,0.000157,2]
[420866247,1776672644145,-5000.0,0.00015543,2]
[420866249,1776672644156,-5000.0,0.000157,2]
[420866251,1776672647073,-4092.75099561,0.000157,2]
[420866252,1776672647127,-3902.95098922,0.000157,2]
[420866253,1776672647140,-25342.37464964,0.000157,2]
[420866437,1776673490557,-5000.0,9.8e-05,2]
[420866438,1776673490579,-557.0,9.8e-05,2]
[420866439,1776673490600,-211.22292932,0.0001,2]
[420866447,1776673604848,-5000.0,0.00010086,2]
[420866448,1776673604870,-561.0,0.00010086,2]
[420866449,1776673604894,-150.0,0.00010137,2]
[420866450,1776673604915,-500.0,0.00010587,2]
[420866502,1776673838232,-5000.0,0.00010922,2]
[420866503,1776673838243,-575.0,0.00011032,2]
[420866504,1776673838253,-287.79429072,0.00011144,2]
[420866505,1776673838264,-500.0,0.00011731,2]
[420866506,1776673838275,-177.0,0.00012137,2]
[420866507,1776673838285,-500.0,0.00012317,2]
[420866508,1776673838295,-500.0,0.00012933,2]
[420866509,1776673838305,-300.0,0.00013388,2]
[420866510,1776673838316,-257.8363576,0.00013389,2]
[420866511,1776673838327,-6625.6199481,0.00013389,2]
[420866512,1776673838338,-507.6447834,0.00013389,2]
[420866513,1776673838349,-1000.0,0.00013699,2]
[420866514,1776673838360,-204.0,0.00014137,2]
[420866515,1776673838371,-211.22292932,0.00014372,14]
[420866516,1776673838382,-202.862086,0.00014609,2]
[420866517,1776673838393,-300.0,0.00014676,2]
[420866519,1776673838404,-507.6447834,0.00014955,2]
[420866520,1776673838415,-1478.3756401,0.00015185,2]
[420866521,1776673838427,-202.862086,0.00015224,2]
[420866522,1776673838437,-152.7010237,0.00015311,2]
[420866523,1776673838448,-500.0,0.00015425,2]
[420866524,1776673838459,-500.0,0.00015425,2]
[420866526,1776673838784,-500.0,0.00015425,2]
[420866528,1776673838812,-500.0,0.00015425,2]
[420866530,1776673838829,-486.15036784,0.00015425,2]
[420866531,1776673838838,-601.28573522,0.00015425,2]
[420866532,1776673838847,-500.0,0.00015585,2]
[420866533,1776673838857,-329.8701933,0.00015586,2]
[420866534,1776673838867,-632.16612081,0.00015599,2]
[420866535,1776673838877,-977.12904888,0.000156,2]
[420866536,1776673838886,-985.5,0.0001562,2]
[420866537,1776673838895,-502.95452491,0.00015673,2]
[420866538,1776673838905,-500.0,0.00015673,2]
[420866539,1776673838914,-500.0,0.00015673,2]
[420866540,1776673838924,-576.36555533,0.00015673,2]
[420866541,1776673838933,-500.0,0.00015673,2]
[420866542,1776673838943,-500.0,0.00015673,2]
[420866543,1776673838952,-500.0,0.00015673,2]
[420866544,1776673838962,-505.02769952,0.00015673,2]
[420866545,1776673838971,-503.6220267,0.00015673,2]
[420866546,1776673838980,-500.40407094,0.00015673,2]
[420866547,1776673838989,-500.0,0.00015673,2]
[420866548,1776673838998,-500.0,0.00015699,2]
[420866549,1776673839007,-500.0,0.00015699,2]
[420866550,1776673839016,-325.84290527,0.00015699,2]
[420866551,1776673839025,-500.0,0.00015699,2]
[420866552,1776673839035,-266.2213482,0.00015699,2]
[420866553,1776673839044,-500.0,0.00015699,2]
[420866554,1776673839053,-341.06183177,0.00015699,2]
[420866555,1776673839072,-158.93816823,0.00015699,2]
[420866556,1776673839081,-500.0,0.00015699,2]
[420866557,1776673839090,-173.16669604,0.00015699,2]
[420866558,1776673839100,-500.0,0.00015699,2]
[420866559,1776673839109,-500.0,0.00015699,2]
[420866560,1776673839118,-500.0,0.00015699,2]
[420866561,1776673839127,-500.0,0.00015699,2]
[420866562,1776673839136,-500.0,0.00015699,2]
[420866563,1776673839146,-500.0,0.00015699,2]
[420866564,1776673839155,-500.0,0.00015699,2]
[420866565,1776673839164,-500.0,0.00015699,2]
[420866566,1776673839173,-500.0,0.00015699,2]
[420866567,1776673839183,-500.0,0.00015699,2]
[420866568,1776673839192,-500.0,0.00015699,2]
[420866569,1776673839201,-500.0,0.00015699,2]
[420866570,1776673839210,-500.0,0.00015699,2]
[420866571,1776673839220,-500.0,0.00015699,2]
[420866572,1776673839229,-500.0,0.00015699,2]
[420866573,1776673839238,-500.0,0.00015699,2]
[420866574,1776673839247,-500.0,0.00015699,2]
[420866575,1776673839256,-500.0,0.00015699,2]
[420866576,1776673839265,-500.0,0.00015699,2]
[420866577,1776673839275,-500.0,0.00015699,2]
[420866578,1776673839284,-500.0,0.00015699,2]
[420866579,1776673839293,-500.0,0.00015699,2]
[420866581,1776673839303,-500.0,0.00015699,2]
[420866582,1776673839312,-500.0,0.00015699,2]
[420866584,1776673839322,-500.0,0.00015699,2]
[420866586,1776673839331,-500.0,0.00015699,2]
[420866587,1776673839340,-345.36568948,0.00015699,2]
[420866589,1776673839349,-512.31555071,0.00015699,2]
[420866591,1776673839358,-500.0,0.00015699,2]
[420866592,1776673839368,-500.0,0.00015699,2]
[420866594,1776673839377,-500.0,0.00015699,2]
[420866596,1776673839386,-500.0,0.00015699,2]
[420866597,1776673839395,-500.0,0.00015699,2]
[420866598,1776673839404,-500.0,0.00015699,2]
[420866599,1776673839414,-500.0,0.00015699,2]
[420866600,1776673839424,-500.0,0.00015699,2]
[420866601,1776673839434,-500.0,0.00015699,2]
[420866602,1776673839443,-500.0,0.00015699,2]
[420866603,1776673839453,-272.79009297,0.00015699,2]
[420866604,1776673839462,-8150.39055706,0.000157,2]
[420866605,1776673839474,-1437.21047514,0.000157,2]
[420866612,1776673840368,-152.0,0.00013813,7]
[420866613,1776673840377,-2082.07231819,0.000157,2]
[420866614,1776673840388,-5339.53196822,0.000157,2]
[420866619,1776673843188,-4000.0,0.000157,2]
[420866626,1776673846056,-21947.03036072,0.000157,2]
[420866627,1776673846111,-1457.10102313,0.000157,2]
[420866636,1776674197695,-528.50354569,0.00010376,2]
[420866637,1776674197718,-565.0,0.00010376,2]
[420866638,1776674197742,-150.0,0.00010429,2]
[420866639,1776674197766,-5000.0,0.00010481,2]
[420866640,1776674197790,-500.0,0.00010587,2]
[420866641,1776674197814,-300.0,0.00010689,2]
[420866642,1776674197841,-300.0,0.0001069,2]
[420866643,1776674197868,-300.0,0.0001069,2]
[420866644,1776674197894,-300.0,0.0001069,2]
[420866645,1776674197922,-300.0,0.0001069,2]
[420866646,1776674197949,-300.0,0.0001069,2]
[420866647,1776674197974,-300.0,0.0001069,2]
[420866648,1776674198000,-300.0,0.0001069,2]
[420866649,1776674198026,-300.0,0.0001069,2]
[420866650,1776674198050,-300.0,0.0001069,2]
[420866651,1776674198073,-256.49645431,0.0001069,2]
[420866652,1776674199981,-43.50354569,0.0001069,2]
[420866653,1776674200007,-300.0,0.0001069,2]
[420866654,1776674200031,-300.0,0.0001069,2]
[420866655,1776674200055,-300.0,0.0001069,2]
[420866656,1776674200079,-300.0,0.0001069,2]
[420866657,1776674200102,-300.0,0.0001069,2]
[420866658,1776674200124,-600.0,0.00010903,2]
[420866674,1776674354734,-378.77942907,0.00010587,2]
[420866675,1776674354758,-568.0,0.00010587,2]
[420866680,1776674439492,-5000.0,0.00010923,2]
[420866684,1776674645700,-5000.0,0.00010481,2]
[420866685,1776674645724,-537.8779429,0.00010587,2]
[420866688,1776674755050,-2150.30563587,0.00010978,2]
[420866696,1776674965630,-1420.66066811,0.0001,2]
[420866697,1776674965652,-1420.66066811,0.00010185,2]
[420866698,1776674965676,-1420.66066811,0.0001037,2]
[420866699,1776674965699,-1420.66066811,0.00010555,2]
[420866700,1776674965721,-1420.66066811,0.0001074,2]
[420866701,1776674965745,-1420.66066811,0.00010926,7]
[420866702,1776674966133,-1420.66066811,0.00011111,7]
[420866703,1776674966154,-75.94232348,0.00011115,2]
[420866739,1776675032031,-437.81540711,0.00011116,2]
[420866740,1776675032085,-138.18459289,0.00011116,2]
[420866741,1776675032095,-150.0,0.00011116,2]
[420866742,1776675032104,-500.0,0.00011144,2]
[420866744,1776675032113,-300.0,0.00011253,2]
[420866745,1776675032122,-1420.66066811,0.00011296,7]
[420866747,1776675032132,-1420.66066811,0.00011481,7]
[420866748,1776675032141,-1420.66066811,0.00011666,7]
[420866749,1776675032150,-500.0,0.00011731,2]
[420866750,1776675032159,-1420.66066811,0.00011851,7]
[420866751,1776675032168,-1420.66066811,0.00012036,7]
[420866752,1776675032178,-254.0,0.0001222,2]
[420866753,1776675032187,-1420.66066811,0.00012221,7]